bitfinex-derivatives/quotes_ETHF0:USTF0_20250730
["timestamp","ask_amount","ask_price","bid_price","bid_amount"]
[1753914044817,20.79658695,3761.7,3761.6,2.5765]
[1753914045516,21.72244542,3761.7,3761.6,2.5765]
[1753914045716,22.13134542,3761.7,3761.6,2.5765]
[1753914046010,22.73554542,3761.7,3761.6,2.5765]
[1753914046214,2.00461,3761.4,3761.3,2.5765]
[1753914046520,21.29621,3761.4,3761.3,1.6372]
[1753914046726,2.5255,3761.3,3761.2,3.8371]
[1753914046917,3.48085097,3761.3,3761.2,4.5448]
[1753914047317,3.48085097,3761.3,3761.2,4.845]
[1753914047516,3.48085097,3761.3,3761.2,5.7843]
[1753914048518,0.53177,3761.0,3760.9,1.9472]
[1753914048726,21.30027,3761.0,3760.9,2.5765]
[1753914049233,21.30027,3761.0,3760.8,3.2078]
[1753914049234,2.5255,3760.9,3760.8,3.2078]
[1753914049722,2.5255,3760.9,3760.5,0.4707]
[1753914049723,2.5255,3760.5,3760.4,5.7843]
[1753914050020,19.282,3760.5,3760.4,0.4161]
[1753914050223,2.5255,3759.9,3759.8,2.09e-06]
[1753914050419,25.74638698,3759.9,3759.8,2.09e-06]
[1753914051020,26.56112896,3759.9,3759.8,2.09e-06]
[1753914051424,1.041,3759.1,3759.0,1.6372]
[1753914051620,20.8075,3759.1,3759.0,2.5765]
[1753914051926,22.15351944,3759.1,3759.0,2.5765]
[1753914052219,22.15351944,3759.1,3758.4,3.2078]
[1753914052220,1.041,3758.9,3758.4,3.2078]
[1753914052426,19.13198944,3758.8,3758.7,2.1058]
[1753914052628,19.13198944,3758.8,3758.7,2.5765]
[1753914052925,19.45048944,3758.8,3758.7,2.5765]
[1753914053222,0.53209,3758.7,3758.4,3.2078]
[1753914053425,18.327,3758.6,3758.5,2.5765]
[1753914053922,19.368,3758.6,3758.5,1.6372]
[1753914054125,20.2483,3758.6,3758.5,2.5765]
[1753914054627,1.25962,3757.8,3757.7,2.1079]
[1753914054815,21.39772,3757.8,3757.7,2.1079]
[1753914055426,20.8655,3757.8,3757.7,2.5765]
[1753914056228,3.05773,3757.7,3757.6,4.5448]
[1753914056428,3.05773,3757.7,3757.6,4.845]
[1753914056628,3.05773,3757.7,3757.6,1.6372]
[1753914057024,3.05773,3757.7,3757.6,1.0079]
[1753914057230,18.6825,3757.7,3757.6,5.7843]
[1753914057624,3.2078,3758.7,3757.7,1.33059]
[1753914057830,0.85061,3758.6,3758.5,2.5765]
[1753914058019,3.05761,3758.6,3758.3,3.2078]
[1753914058224,1.041,3758.4,3758.3,4.2157]
[1753914058526,2.5255,3758.4,3758.3,5.7843]
[1753914058926,0.4415,3758.7,3758.3,5.7843]
[1753914059232,3.2078,3759.1,3758.9,2.533]
[1753914059425,3.2078,3759.1,3759.0,2.533]
[1753914059630,22.6488,3759.1,3759.0,2.533]
[1753914059930,23.512,3759.1,3759.0,2.533]
[1753914060126,3.2078,3759.1,3759.0,2.533]
[1753914060333,5.09846161,3760.0,3759.3,1.0441]
[1753914060525,1.56045,3759.7,3759.6,1.0441]
[1753914060831,1.56045,3759.7,3759.6,2.533]
[1753914060832,1.9242,3759.7,3759.6,2.533]
[1753914061025,18.387,3759.7,3759.6,0.4729]
[1753914061228,18.387,3759.7,3759.6,1.4889]
[1753914061428,0.53196,3759.7,3759.3,0.532]
[1753914061627,18.91896,3759.7,3759.3,0.532]
[1753914061828,3.2078,3760.0,3759.7,0.53194]
[1753914062135,18.389,3760.2,3760.1,1.4889]
[1753914062435,18.92387,3760.3,3760.2,1.4889]
[1753914062638,0.53181,3760.7,3760.5,1.4889]
[1753914062836,18.92481,3760.7,3760.6,0.9093]
[1753914063028,18.92481,3760.7,3760.6,1.4889]
[1753914063228,18.393,3760.7,3760.6,1.4889]
[1753914064239,18.8345,3760.7,3760.6,1.4889]
[1753914064537,18.8365,3760.7,3760.6,1.4889]
[1753914064726,19.8868,3760.7,3760.6,1.4889]
[1753914065525,1.4918,3760.7,3760.6,1.4889]
[1753914065730,18.385,3760.7,3760.3,1.4889]
[1753914066035,0.53182,3760.7,3760.4,1.0525]
[1753914066233,0.84862,3760.7,3760.6,1.0441]
[1753914066427,1.15132,3760.7,3760.6,2.533]
[1753914066626,0.4542,3760.2,3760.0,3.2078]
[1753914066834,0.53199,3759.4,3759.3,0.5796]
[1753914067032,0.53202,3759.2,3759.1,4.2238]
[1753914067332,18.8375,3759.4,3759.2,1.4889]
[1753914067527,0.8957,3759.7,3759.4,2.02089]
[1753914067734,18.396,3759.6,3759.5,1.4889]
[1753914068232,19.8878,3759.6,3759.5,1.4889]
[1753914068939,1.4918,3759.5,3759.2,1.4889]
[1753914069244,2.02382,3759.3,3759.2,0.5796]
[1753914069635,1.4918,3759.3,3759.2,1.016]
[1753914069831,1.4918,3759.3,3759.2,1.4889]
[1753914070335,1.4918,3759.3,3759.2,1.016]
[1753914071236,2.5203,3759.3,3759.2,2.533]
[1753914072632,0.3168,3759.8,3759.7,2.533]
[1753914072834,0.53191,3760.1,3759.8,0.53194]
[1753914073038,0.53191,3760.1,3759.0,1.3301]
[1753914073039,0.53185,3760.5,3760.3,0.4729]
[1753914073233,3.2078,3761.0,3760.6,1.016]
[1753914073436,19.8838,3760.7,3760.6,1.4889]
[1753914073835,1.4276,3760.1,3760.0,1.4889]
[1753914074038,3.91436161,3760.1,3760.0,0.5796]
[1753914074239,2.33216161,3760.1,3760.0,1.4889]
[1753914074841,2.78636161,3760.1,3760.0,1.4889]
[1753914075241,3.38246161,3760.1,3760.0,1.4889]
[1753914075439,0.8957,3760.1,3760.0,1.4889]
[1753914075940,1.4918,3760.1,3760.0,1.4889]
[1753914076135,1.0503,3759.9,3759.8,3.2078]
[1753914076443,0.53198,3759.5,3759.4,1.4889]
[1753914077438,0.53201,3759.3,3759.2,4.2238]
[1753914077744,0.53201,3759.3,3759.2,4.6967]
[1753914078641,0.53206,3759.0,3758.8,3.73987]
[1753914078847,0.97356,3759.0,3758.9,1.4889]
[1753914079048,2.02386,3759.0,3758.9,1.4889]
[1753914079242,0.53211,3758.6,3758.5,1.4889]
[1753914079442,0.5321,3758.7,3758.4,3.2078]
[1753914079647,0.53208,3758.8,3758.6,1.4889]
[1753914079843,0.53211,3758.7,3758.5,0.4729]
[1753914080043,0.53211,3758.7,3758.6,0.4729]
[1753914080245,2.02391,3758.7,3758.6,1.4889]
[1753914080750,1.4918,3758.7,3758.6,1.4889]
[1753914081244,1.4918,3758.7,3758.6,0.5796]
[1753914081745,0.53211,3758.6,3758.4,3.7874]
[1753914082049,1.4918,3758.5,3758.4,3.7874]
[1753914082450,1.4918,3758.5,3758.4,3.2078]
[1753914082947,1.33028,3758.6,3758.0,4.6967]
[1753914083250,0.97368,3758.2,3758.1,1.4889]
[1753914083453,0.53215,3758.3,3758.2,1.4889]
[1753914083644,0.53215,3758.3,3758.2,2.533]
[1753914083845,0.84895,3758.3,3758.2,2.533]
[1753914084045,3.05245,3758.3,3758.2,2.533]
[1753914084261,3.05245,3758.3,3758.2,1.6237]
[1753914084549,3.05251,3757.9,3757.8,2.533]
[1753914086152,2.45641,3757.9,3757.8,2.533]
[1753914087143,2.45641,3757.9,3757.5,0.53225]
[1753914087144,2.15686,3757.6,3757.5,1.6237]
[1753914087752,2.15686,3757.6,3757.5,2.533]
[1753914087753,3.05256,3757.6,3757.5,2.533]
[1753914088650,3.05256,3757.6,3757.5,1.5338]
[1753914088958,3.05256,3757.6,3757.5,2.5475]
[1753914089752,2.00226,3757.6,3757.5,2.5475]
[1753914090556,0.6195,3757.6,3757.5,2.5475]
[1753914090755,0.3168,3757.6,3757.5,2.5475]
[1753914091354,0.53226,3757.5,3757.4,3.2078]
[1753914091548,4.85542161,3757.5,3757.4,3.2078]
[1753914092148,0.5323,3757.2,3757.1,1.6357]
[1753914092355,2.9648,3757.2,3757.1,1.6357]
[1753914093653,2.9648,3757.2,3757.1,2.5187]
[1753914094157,2.9648,3757.2,3756.8,0.39927067]
[1753914094158,0.6797,3756.9,3756.8,1.72407067]
[1753914094356,1.8636,3756.9,3756.8,2.91797067]
[1753914094556,1.4196,3756.9,3756.8,2.91797067]
[1753914094952,0.8997,3757.6,3756.8,1.43537067]
[1753914095159,2.96475,3757.6,3757.5,2.5187]
[1753914095857,2.96475,3757.6,3757.5,2.0862]
[1753914096048,3.2078,3757.8,3757.6,0.53225]
[1753914096251,3.74003,3757.8,3757.7,2.5187]
[1753914096462,4.02423,3757.8,3757.7,2.5187]
[1753914096662,3.2078,3757.8,3757.7,2.5187]
[1753914097462,3.492,3757.8,3757.7,2.5187]
[1753914097760,3.2078,3758.2,3757.4,4.53849]
[1753914098056,0.53211,3758.6,3758.3,3.05085]
[1753914098255,0.53211,3758.6,3758.5,4.8435]
[1753914098456,1.62564374,3758.6,3758.5,2.5187]
[1753914098650,0.53218,3758.1,3758.0,1.3612]
[1753914098849,0.81648,3757.4,3757.3,2.5187]
[1753914099050,2.00088,3757.4,3757.3,1.4826]
[1753914099260,0.53228,3757.4,3757.3,1.4826]
[1753914100358,2.00088,3757.4,3757.3,1.4826]
[1753914100554,0.53225,3757.7,3757.4,2.01486]
[1753914100755,0.53221,3757.9,3757.7,1.0321]
[1753914100963,0.53219,3758.0,3757.8,0.53222]
[1753914101158,0.53227,3757.5,3757.2,3.7401]
[1753914101463,0.8997,3757.8,3757.3,1.4826]
[1753914101660,1.0246,3757.7,3757.4,1.0321]
[1753914101859,2.00085,3757.6,3757.5,1.4826]
[1753914102059,0.53225,3757.6,3757.4,0.53228]
[1753914102265,0.53225,3757.6,3757.5,1.4826]
[1753914102453,0.98795,3757.6,3757.5,1.4826]
[1753914102659,0.53224,3757.7,3757.5,2.01486]
[1753914102865,0.53224,3757.7,3757.6,1.4826]
[1753914103559,1.43194,3757.7,3757.6,1.4826]
[1753914103759,0.8997,3757.7,3757.6,2.01485]
[1753914104061,19.76845,3758.2,3757.6,2.01485]
[1753914104062,0.8997,3758.4,3757.6,3.2078]
[1753914104264,0.53215,3758.3,3758.2,1.4826]
[1753914104566,0.444,3758.7,3758.3,0.5996]
[1753914104870,0.53213,3758.5,3758.3,1.4826]
[1753914105165,0.53213,3758.5,3758.4,1.4826]
[1753914107060,0.53213,3758.5,3758.1,3.2078]
[1753914107061,0.444,3758.7,3758.5,0.5996]
[1753914107359,0.4557,3758.8,3758.3,0.883]
[1753914107566,0.53212,3758.6,3758.4,0.53212]
[1753914107755,0.53212,3758.6,3758.5,0.883]
[1753914107957,1.344105,3758.6,3758.5,1.4826]
[1753914108158,0.53212,3758.6,3758.5,1.4826]
[1753914108659,0.53212,3758.6,3758.5,2.5187]
[1753914108963,0.53212,3758.6,3758.5,2.52327445]
[1753914109264,1.62881291,3758.6,3758.5,2.52327445]
[1753914109468,0.81632,3758.6,3758.5,2.52327445]
[1753914109765,2.8130205,3758.6,3758.5,2.52327445]
[1753914109965,2.00022,3758.6,3758.5,2.52327445]
[1753914110465,2.39572,3758.6,3758.5,2.52327445]
[1753914111161,0.2842,3758.6,3758.5,2.52327445]
[1753914111970,1.4196,3758.6,3758.5,2.52327445]
[1753914112465,1.8636,3758.6,3758.5,2.52327445]
[1753914112964,0.7399,3758.6,3758.5,2.52327445]
[1753914113163,0.5321,3758.7,3758.6,1.9191]
[1753914113470,0.5321,3758.7,3758.6,2.5187]
[1753914113670,0.8163,3758.7,3758.6,2.5187]
[1753914114665,1.1005,3758.7,3758.6,2.5187]
[1753914114865,1.5562,3758.7,3758.6,2.5187]
[1753914116572,38.322,3758.9,3758.8,1.0361]
[1753914116762,56.722,3758.9,3758.8,2.5187]
[1753914116963,18.6842,3758.9,3758.8,2.5187]
[1753914117158,0.53204,3759.1,3759.0,1.9191]
[1753914117364,1.34520095,3759.1,3759.0,2.5187]
[1753914117563,0.81316095,3759.1,3759.0,2.5187]
[1753914117763,1.09736095,3759.1,3759.0,2.5187]
[1753914117964,0.81316095,3759.1,3759.0,2.5187]
[1753914118269,18.93196,3759.7,3759.5,1.56808]
[1753914118464,19.21616,3759.7,3759.6,2.5187]
[1753914118670,19.21273274,3759.7,3759.6,2.5007]
[1753914119368,18.4,3759.7,3759.6,2.5007]
[1753914120465,0.5959,3759.8,3759.7,1.4348]
[1753914120663,1.56384,3759.8,3759.7,2.4296]
[1753914120861,1.853,3759.8,3759.7,2.96155]
[1753914121060,0.4382,3760.3,3760.2,0.53188]
[1753914121258,0.53185,3760.5,3760.2,2.96148]
[1753914121467,0.4382,3760.6,3760.5,2.4296]
[1753914121468,20.252,3760.6,3760.5,2.4296]
[1753914121672,20.42916313,3760.6,3760.5,2.4296]
[1753914121865,20.42716313,3760.6,3760.5,2.96144]
[1753914122065,20.95898313,3760.6,3760.5,2.4296]
[1753914122270,20.25,3760.6,3760.5,2.96144]
[1753914122470,3.2078,3760.8,3760.1,3.2078]
[1753914122471,23.0749,3760.8,3760.7,2.4296]
[1753914122664,23.25197559,3760.8,3760.7,2.4296]
[1753914122973,24.19197559,3760.8,3760.7,2.4296]
[1753914123270,20.8071,3760.8,3760.7,2.4296]
[1753914125166,2.4101,3760.8,3760.7,2.4296]
[1753914125469,20.8001,3760.8,3760.7,2.4296]
[1753914126772,2.4101,3760.8,3760.7,2.4296]
[1753914126972,20.7961,3760.8,3760.7,2.4296]
[1753914129570,0.9788,3760.8,3760.7,2.4296]
[1753914129777,20.7791,3760.8,3760.7,1.5646]
[1753914130377,20.7791,3760.8,3760.7,2.4296]
[1753914130766,2.94194,3760.5,3760.4,5.2008]
[1753914130967,2.94194,3760.5,3760.4,5.6374]
[1753914131168,2.4101,3760.5,3760.4,5.6374]
[1753914131972,2.4101,3759.9,3759.8,4.7724]
[1753914132171,2.4101,3759.9,3759.8,6.16934]
[1753914132577,2.4101,3759.9,3759.8,5.6374]
[1753914133174,1.51071,3760.1,3760.0,1.5646]
[1753914133479,2.94201,3760.1,3760.0,0.5958]
[1753914133871,2.94202,3759.9,3759.8,3.2078]
[1753914134072,4.83268161,3759.9,3759.8,3.2078]
[1753914134475,21.32002,3759.9,3759.8,3.2078]
[1753914135574,21.32002,3759.9,3759.8,4.7724]
[1753914136778,21.32002,3759.9,3759.8,5.2008]
[1753914136974,21.32002,3759.9,3759.8,5.6374]
[1753914137377,19.3568,3759.9,3759.8,5.6374]
[1753914137775,3.2078,3760.5,3760.1,0.9688]
[1753914137776,0.436,3760.5,3760.1,0.9688]
[1753914138081,2.94194,3760.5,3760.4,2.4296]
[1753914138283,21.31594,3760.5,3760.4,0.9688]
[1753914138580,2.4101,3760.2,3760.1,2.4296]
[1753914138782,1.853,3760.2,3760.1,2.4296]
[1753914139171,0.3059,3760.2,3760.1,2.4296]
[1753914139377,19.9099,3760.5,3760.4,0.9688]
[1753914139577,20.7841,3760.5,3760.4,2.4296]
[1753914139981,21.31594,3760.5,3760.4,2.4296]
[1753914140380,21.31594,3760.5,3760.4,0.9688]
[1753914140577,21.31594,3760.5,3760.4,0.399]
[1753914141182,0.9788,3760.0,3759.9,2.4296]
[1753914141377,21.30901,3760.0,3759.8,3.2078]
[1753914141578,2.4101,3759.9,3759.8,3.2078]
[1753914141981,0.9788,3759.7,3759.6,1.5646]
[1753914142181,2.4101,3759.7,3759.6,1.993]
[1753914143289,0.3059,3759.7,3759.6,2.4296]
[1753914143680,18.6739,3759.8,3759.7,0.9688]
[1753914143883,18.6739,3759.8,3759.7,2.4296]
[1753914144081,18.365,3760.0,3759.9,0.9688]
[1753914144279,18.365,3760.0,3759.9,2.4296]
[1753914145687,18.9609,3760.0,3759.9,2.4296]
[1753914145876,19.3969,3760.0,3759.9,2.4296]
[1753914147886,1.5359,3760.5,3760.4,0.9688]
[1753914148089,0.53183,3760.6,3760.5,2.4296]
[1753914148285,20.35693,3760.6,3760.5,2.4296]
[1753914148492,22.10952464,3760.6,3760.5,2.96144]
[1753914148791,22.10952464,3760.6,3760.5,2.4296]
[1753914148993,19.47349464,3760.6,3760.5,2.4296]
[1753914149192,0.9533,3760.3,3760.2,0.9326]
[1753914149389,0.9533,3760.3,3760.0,0.9326]
[1753914149390,0.9533,3760.1,3760.0,0.9326]
[1753914149589,0.9533,3760.1,3760.0,1.525]
[1753914149784,0.2747,3760.1,3760.0,2.3628]
[1753914150296,1.92449,3760.1,3760.0,2.3628]
[1753914150495,2.35829,3760.1,3760.0,2.3628]
[1753914150684,2.90719,3760.1,3760.0,2.3628]
[1753914151186,2.3753,3760.1,3760.0,2.3628]
[1753914152393,18.6307,3760.5,3760.4,0.9698]
[1753914152598,20.1824,3760.5,3760.4,2.3628]
[1753914152790,20.7313,3760.5,3760.4,2.3628]
[1753914153695,20.7313,3760.5,3760.4,1.7704]
[1753914153890,20.7313,3760.5,3760.4,2.3628]
[1753914154794,18.9268,3760.5,3760.4,2.3628]
[1753914155297,20.7313,3760.5,3760.4,2.3628]
[1753914155892,2.3753,3760.0,3759.9,3.2078]
[1753914156094,2.3753,3760.0,3759.9,4.7664]
[1753914156296,2.3753,3760.0,3759.9,5.5706]
[1753914157593,1.3926,3760.0,3759.9,5.5706]
[1753914157900,0.2747,3760.0,3759.9,5.5706]
[1753914158100,18.6207,3760.2,3760.1,1.6338]
[1753914158398,0.5708,3760.2,3760.1,2.3628]
[1753914158794,0.2747,3760.2,3760.1,0.9698]
[1753914159306,0.53184,3760.5,3760.1,1.9854]
[1753914159499,19.14254,3760.5,3760.4,5.5706]
[1753914159699,19.87794,3760.5,3760.4,5.5706]
[1753914159899,18.86783,3760.6,3760.4,6.10244]
[1753914160088,18.336,3760.6,3760.4,4.70944]
[1753914160292,18.336,3760.6,3760.5,2.3628]
[1753914160896,4.6298,3761.4,3760.6,1.393]
[1753914161091,38.687,3761.7,3761.2,2.3628]
[1753914161092,0.81357152,3761.3,3761.2,2.3628]
[1753914161293,1.08827152,3761.3,3761.2,2.3628]
[1753914161497,2.20617152,3761.3,3761.2,2.3628]
[1753914161698,3.18887152,3761.3,3761.2,0.9698]
[1753914161892,1.79627152,3761.3,3760.9,4.0456]
[1753914162090,1.48511,3760.7,3760.5,3.2078]
[1753914162287,0.9533,3760.7,3760.6,1.525]
[1753914162491,0.9533,3760.7,3760.6,2.3628]
[1753914162701,1.3926,3760.7,3760.6,2.3628]
[1753914164001,18.87175,3761.2,3761.0,1.3966]
[1753914164297,0.38,3761.7,3761.6,2.3628]
[1753914164500,0.38,3761.7,3761.6,5.5706]
[1753914173007,0.6547,3761.7,3761.6,5.5706]
[1753914174806,2.7553,3761.7,3761.6,3.5852]
[1753914175004,2.7553,3761.7,3761.6,5.5706]
[1753914176204,1.7726,3761.7,3761.6,5.5706]
[1753914176408,0.9508,3761.7,3761.6,5.5706]
[1753914176609,2.2064,3761.7,3761.6,5.5706]
[1753914176805,2.7553,3761.7,3761.6,5.5706]
[1753914182809,0.38,3761.7,3761.6,5.5706]
[1753914183405,0.6654,3761.7,3761.6,5.5706]
[1753914184507,0.38,3761.7,3761.6,5.5706]
[1753914190915,0.6654,3761.7,3761.6,6.50347706]
[1753914194216,0.38,3761.7,3761.6,6.50347706]
[1753914196023,1.4322,3762.3,3762.2,2.9488]
[1753914196312,1.4322,3762.3,3762.2,3.88167706]
[1753914196911,1.8215,3762.3,3762.2,3.88167706]
[1753914197115,2.4024,3762.3,3762.2,3.88167706]
[1753914198115,0.53156,3762.5,3761.7,1.32918]
[1753914198116,0.53162,3762.1,3761.9,0.53163]
[1753914198322,0.9824,3762.0,3761.8,0.53165]
[1753914198514,2.4024,3761.9,3761.8,0.53165]
[1753914198920,2.4024,3761.9,3761.8,1.10475]
[1753914199224,3.86691706,3761.9,3761.7,3.2078]
[1753914199427,2.4024,3761.8,3761.7,3.73946]
[1753914199920,2.4024,3761.8,3761.7,6.15666]
[1753914201124,1.4144,3761.8,3761.7,6.15666]
[1753914201627,1.8215,3761.8,3761.7,6.15666]
[1753914202228,2.4024,3761.8,3761.7,6.15666]
[1753914202428,2.4024,3761.8,3761.7,3.2078]
[1753914203128,2.4024,3761.8,3761.7,4.4698]
[1753914203328,2.4024,3761.8,3761.7,5.625]
[1753914203728,2.93405,3761.8,3761.7,3.2078]
[1753914203928,1.20642,3761.4,3761.3,3.2078]
[1753914204134,2.70462,3761.4,3761.3,3.2078]
[1753914204530,0.53176,3761.1,3760.9,0.5731]
[1753914204727,3.2078,3761.7,3760.8,4.14067706]
[1753914204931,2.1729,3761.2,3761.1,3.88182706]
[1753914206233,2.1729,3761.2,3761.1,2.4172]
[1753914207032,0.2854,3761.2,3761.1,2.4172]
[1753914207230,1.963,3761.8,3761.7,1.9688]
[1753914207431,1.963,3761.8,3761.7,2.4172]
[1753914207736,2.69467,3761.8,3761.7,2.0116]
[1753914208233,2.69467,3761.8,3761.7,1.5632]
[1753914208435,2.69467,3761.8,3761.7,0.6987]
[1753914209026,2.69467,3761.8,3761.3,3.2078]
[1753914209027,0.3043,3761.4,3761.3,3.2078]
[1753914209231,1.1766,3761.1,3761.0,0.53176]
[1753914209431,2.1454,3761.1,3761.0,0.53176]
[1753914211333,1.50055,3761.1,3760.9,3.73958]
[1753914211534,0.9688,3761.0,3760.9,0.53178]
[1753914211733,2.1454,3761.0,3760.9,0.53178]
[1753914211934,0.6302,3760.6,3760.5,3.2078]
[1753914212141,0.9688,3760.6,3760.4,0.53184]
[1753914212439,2.1454,3760.5,3760.4,1.09335]
[1753914212635,2.1454,3760.5,3760.4,2.93105]
[1753914214442,2.1454,3760.2,3760.1,3.2078]
[1753914214938,2.1454,3760.2,3760.1,5.607]
[1753914226950,2.1454,3760.2,3760.1,3.2078]
[1753914227250,2.1454,3760.2,3760.1,3.7778]
[1753914227648,2.1454,3760.2,3760.1,3.2078]
[1753914228048,2.1454,3760.2,3760.1,4.7154]
[1753914228245,4.3844,3760.9,3760.2,1.0296]
[1753914228444,2.1454,3760.3,3760.2,3.33207706]
[1753914228746,0.93287706,3761.0,3760.2,3.33207706]
[1753914228747,0.80683,3761.3,3761.2,0.9376]
[1753914228943,2.13073,3761.3,3761.2,0.9376]
[1753914229150,2.67713,3761.3,3761.2,0.9376]
[1753914229349,2.67713,3761.3,3761.2,0.6651]
[1753914229549,2.67715,3761.1,3761.0,1.7506]
[1753914229749,2.67715,3761.1,3761.0,1.9672]
[1753914230050,2.67715,3761.1,3761.0,2.3992]
[1753914232749,2.1454,3761.1,3761.0,2.3992]
[1753914232955,38.294,3761.7,3761.2,0.9376]
[1753914232956,0.53174,3761.3,3761.2,0.9376]
[1753914233255,0.80684,3761.3,3761.2,3.33207706]
[1753914233455,0.2751,3761.3,3761.2,1.87047706]
[1753914233656,1.2947,3761.3,3761.2,0.9376]
[1753914234153,1.8411,3761.3,3761.2,2.3992]
[1753914234656,2.1454,3761.3,3761.2,2.3992]
[1753914235556,0.2751,3761.3,3761.2,3.33207706]
[1753914236655,0.9053,3761.3,3761.2,3.33207706]
[1753914236856,1.8411,3761.3,3761.2,3.33207706]
[1753914237053,2.1454,3761.3,3761.2,3.33207706]
[1753914240462,2.1454,3761.3,3761.2,2.3992]
[1753914241262,3.4873,3761.8,3761.7,2.345]
[1753914241463,3.4873,3761.8,3761.7,3.27787706]
[1753914241662,5.3334,3761.8,3761.7,1.9462]
[1753914241859,5.3334,3761.8,3761.7,2.345]
[1753914242059,0.5317,3761.5,3761.4,2.87907706]
[1753914242260,0.2795,3761.1,3761.0,4.1615]
[1753914242460,2.1256,3761.1,3761.0,0.9537]
[1753914242860,2.1256,3761.1,3761.0,2.87677]
[1753914243056,2.1256,3761.1,3761.0,2.345]
[1753914243260,2.03748,3761.6,3761.5,0.9537]
[1753914243462,2.03753,3761.3,3761.2,0.9537]
[1753914243666,2.03753,3761.3,3761.2,1.9462]
[1753914243966,2.65733,3761.3,3761.2,2.345]
[1753914244361,0.53175,3761.1,3761.0,3.2078]
[1753914244667,2.1256,3760.3,3760.2,2.345]
[1753914245562,2.65748,3760.2,3760.1,3.2078]
[1753914246164,1.48592,3759.9,3759.8,1.35265209]
[1753914246367,2.65752,3759.9,3759.8,2.74395209]
[1753914246964,0.6516,3759.9,3759.8,3.67682915]
[1753914247165,0.2795,3759.9,3759.8,3.67682915]
[1753914247564,0.2795,3759.9,3759.8,4.20876915]
[1753914247869,0.8993,3760.1,3760.0,0.9537]
[1753914248069,0.8993,3760.1,3760.0,2.345]
[1753914248569,1.2714,3760.1,3760.0,2.345]
[1753914248769,38.296,3761.4,3760.0,2.345]
[1753914248770,0.4185,3760.4,3760.0,1.48561]
[1753914248964,0.2795,3760.3,3760.2,3.27787706]
[1753914250066,0.2013,3760.6,3760.3,0.53187]
[1753914250272,0.2013,3760.6,3760.5,2.97857706]
[1753914250273,0.2795,3760.6,3760.5,2.97857706]
[1753914250473,0.2795,3760.6,3760.5,3.27787706]
[1753914251571,3.2078,3761.3,3760.5,3.27787706]
[1753914251572,2.65735,3761.1,3761.0,2.345]
[1753914252073,2.1256,3761.1,3761.0,2.87677]
[1753914252472,0.53172,3761.4,3761.2,0.53173]
[1753914252669,1.2714,3761.4,3761.3,1.8128]
[1753914252971,2.1256,3761.4,3761.3,1.8128]
[1753914253171,2.1256,3761.4,3761.3,2.345]
[1753914253662,0.53169,3761.6,3761.4,0.53171]
[1753914253861,0.2795,3761.6,3761.5,2.345]
[1753914256374,0.81114,3761.9,3761.8,0.9537]
[1753914256565,1.80304,3761.9,3761.8,2.345]
[1753914256768,2.35484,3761.9,3761.8,2.345]
[1753914256968,2.65724,3761.9,3761.8,2.345]
[1753914260570,1.18324,3761.9,3761.8,2.345]
[1753914260766,2.35484,3761.9,3761.8,2.345]
[1753914260971,2.65724,3761.9,3761.8,2.345]
[1753914265475,0.5317,3761.5,3761.4,4.14067706]
[1753914265681,0.81124,3761.2,3761.1,2.345]
[1753914265882,1.43104,3761.2,3761.1,3.27787706]
[1753914266077,0.81124,3761.2,3761.1,3.27787706]
[1753914266377,0.53173,3761.3,3761.2,1.48544]
[1753914266581,1.1716,3761.5,3761.3,0.53171]
[1753914266778,0.2795,3761.4,3761.3,7.01738706]
[1753914266978,0.2795,3761.4,3761.3,6.48567706]
[1753914267183,0.2795,3761.4,3761.3,2.345]
[1753914267373,0.8993,3761.4,3761.3,2.345]
[1753914267778,0.2795,3761.4,3761.3,3.27787706]
[1753914269879,3.2078,3762.0,3761.3,5.53197706]
[1753914270083,5.81533,3762.0,3761.9,2.3706]
[1753914271784,0.93287706,3762.4,3762.0,0.53163]
[1753914271785,1.1545,3762.4,3762.0,0.53163]
[1753914271986,19.73497,3762.4,3762.3,2.3706]
[1753914272581,20.88947,3762.4,3762.3,2.3706]
[1753914274879,2.0759,3761.8,3761.7,1.4071]
[1753914275082,2.0759,3761.8,3761.7,2.3706]
[1753914277488,0.2601,3761.8,3761.7,2.3706]
[1753914277789,42.03936,3762.5,3762.4,2.3706]
[1753914277989,60.31936,3762.5,3762.4,2.3706]
[1753914278186,60.31936,3762.5,3762.4,1.964]
[1753914278389,61.47356,3762.5,3762.4,1.5022]
[1753914278589,1.45298,3762.3,3762.2,1.3519]
[1753914278789,1.6495,3761.8,3761.7,1.10176]
[1753914278991,2.0756,3761.8,3761.7,1.47696]
[1753914279291,2.0756,3761.8,3761.7,2.03386]
[1753914279491,2.0756,3761.8,3761.7,2.90226]
[1753914280694,1.5487,3761.8,3761.7,2.90226]
[1753914281088,0.612,3761.8,3761.7,2.90226]
[1753914281290,0.2601,3761.8,3761.7,2.90226]
[1753914282390,0.8874,3761.8,3761.7,2.90226]
[1753914285192,2.0756,3761.8,3761.7,2.3706]
[1753914285494,2.0756,3761.6,3761.5,2.34539]
[1753914286190,2.0756,3761.6,3761.5,2.90229]
[1753914286895,2.18111,3762.1,3762.0,1.964]
[1753914287101,2.60725,3761.8,3761.7,0.6694]
[1753914287397,2.0756,3761.6,3761.5,2.3706]
[1753914288393,0.2601,3761.6,3761.5,2.3706]
[1753914288593,2.0756,3761.9,3761.8,2.3706]